bitfinex/quotes_SOLUSD_20251223
["timestamp","ask_amount","ask_price","bid_price","bid_amount"]
[1766453179670,0.69,126.48,126.44,2.30730805]
[1766453179847,0.69,126.48,126.45,0.72]
[1766453180247,0.69,126.48,126.44,3.02730805]
[1766453180573,0.69,126.48,126.45,0.72]
[1766453180754,2.30730805,126.49,126.45,0.72]
[1766453180953,0.69,126.48,126.44,3.02730805]
[1766453181474,0.69,126.48,126.45,0.72]
[1766453189582,2.30730805,126.49,126.45,0.72]
[1766453189875,0.69,126.48,126.45,0.72]
[1766453199271,10.43767296,126.49,126.46,0.7]
[1766453200888,11.08767296,126.49,126.46,0.7]
[1766453215701,0.65,126.48,126.46,0.7]
[1766453218407,11.08767296,126.49,126.46,0.7]
[1766453219505,14.44,126.52,126.46,0.7]
[1766453219806,11.50818405,126.54,126.5,0.7]
[1766453219807,0.65,126.54,126.5,0.7]
[1766453219976,0.65,126.53,126.5,0.7]
[1766453220176,11.08767296,126.53,126.5,0.7]
[1766453220791,11.08767296,126.53,126.51,0.7]
[1766453220989,10.43767296,126.53,126.51,0.7]
[1766453221200,0.65,126.56,126.52,0.7]
[1766453221408,0.65,126.56,126.53,0.7]
[1766453221708,10.43767296,126.55,126.53,0.7]
[1766453221880,0.65,126.56,126.53,0.7]
[1766453226305,0.65,126.56,126.49,30.20102044]
[1766453226306,0.69,126.55,126.5,3.60538367]
[1766453226616,0.69,126.54,126.51,0.67]
[1766453231704,0.69,126.54,126.51,4.87]
[1766453237602,0.69,126.54,126.51,0.67]
[1766453241226,11.12767296,126.55,126.51,3.60538367]
[1766453241426,10.43767296,126.55,126.52,0.67]
[1766453241623,11.12767296,126.55,126.52,0.67]
[1766453242119,10.43767296,126.55,126.52,0.67]
[1766453242327,0.69,126.54,126.52,0.67]
[1766453248230,10.43767296,126.55,126.52,0.67]
[1766453248435,0.69,126.55,126.52,0.67]
[1766453257650,29.16305663,126.57,126.53,0.71]
[1766453257827,0.68,126.56,126.53,0.71]
[1766453288411,0.68,126.56,126.52,14.40876133]
[1766453288412,0.71,126.54,126.52,4.2]
[1766453288701,2.30494638,126.55,126.47,14.41174973]
[1766453288702,2.30494638,126.53,126.47,14.41174973]
[1766453288999,14.44,126.55,126.48,0.72]
[1766453289000,0.71,126.51,126.48,0.72]
[1766453290079,0.71,126.51,126.46,14.44]
[1766453290080,0.71,126.5,126.46,22.34750039]
[1766453290279,2.30494638,126.49,126.45,0.72]
[1766453290490,0.71,126.48,126.45,0.72]
[1766453290875,2.30494638,126.5,126.45,0.72]
[1766453291107,0.71,126.49,126.45,0.72]
[1766453291676,0.71,126.49,126.46,0.72]
[1766453292806,0.71,126.47,126.43,3.02494638]
[1766453293301,0.71,126.47,126.43,0.72]
[1766453296515,10.43767296,126.47,126.42,0.1]
[1766453296682,0.71,126.44,126.42,0.1]
[1766453297501,0.71,126.45,126.42,0.82]
[1766453299384,2.30494638,126.46,126.42,0.82]
[1766453299584,0.71,126.45,126.42,0.82]
[1766453305317,0.71,126.46,126.43,0.72]
[1766453305695,12.74261934,126.47,126.43,2.30494638]
[1766453305696,0.71,126.47,126.43,2.30494638]
[1766453305914,0.71,126.47,126.44,0.72]
[1766453306418,3.01494638,126.49,126.45,0.72]
[1766453306620,0.71,126.49,126.45,0.72]
[1766453306914,3.01494638,126.49,126.45,0.72]
[1766453307114,0.71,126.48,126.45,0.72]
[1766453307701,0.71,126.48,126.44,0.72]
[1766453307998,2.30494638,126.48,126.44,0.72]
[1766453308209,0.71,126.47,126.44,0.72]
[1766453309111,3.01494638,126.48,126.44,0.72]
[1766453309296,2.30494638,126.48,126.44,0.72]
[1766453309496,0.71,126.47,126.44,0.72]
[1766453309920,0.71,126.47,126.43,6.50494638]
[1766453310121,0.71,126.47,126.43,4.92]
[1766453310122,0.71,126.46,126.43,4.92]
[1766453310617,0.71,126.46,126.44,0.72]
[1766453310809,0.71,126.46,126.43,4.2]
[1766453311006,0.71,126.46,126.43,4.86]
[1766453311200,0.72,126.46,126.43,4.2]
[1766453311907,0.72,126.46,126.43,4.86]
[1766453312308,0.72,126.46,126.43,4.2]
[1766453312617,2.30494638,126.46,126.42,4.3]
[1766453312823,0.72,126.45,126.42,3.8]
[1766453313126,0.72,126.45,126.43,0.66]
[1766453313331,3.02494638,126.46,126.43,0.66]
[1766453313825,0.72,126.45,126.42,3.8]
[1766453314917,0.72,126.45,126.41,10.31569397]
[1766453315125,0.72,126.45,126.41,0.1]
[1766453315827,0.72,126.45,126.41,8.68060114]
[1766453316127,0.72,126.45,126.41,10.98554752]
[1766453316429,0.72,126.45,126.41,8.68060114]
[1766453316614,0.72,126.45,126.41,10.98554752]
[1766453317434,0.72,126.45,126.42,0.67]
[1766453319527,2.30494638,126.46,126.42,8.58013588]
[1766453319826,11.08767296,126.47,126.43,0.67]
[1766453320823,11.08767296,126.47,126.43,4.17]
[1766453321206,23.36446283,126.54,126.44,0.67]
[1766453321207,3.60716875,126.49,126.44,0.67]
[1766453321527,14.69484171,126.49,126.45,0.67]
[1766453323319,14.04484171,126.49,126.45,0.67]
[1766453324229,0.65,126.48,126.45,0.67]
[1766453326816,14.04484171,126.49,126.45,0.67]
[1766453327015,0.65,126.48,126.45,0.67]
[1766453327841,14.04484171,126.49,126.45,0.67]
[1766453328024,14.69484171,126.49,126.45,0.67]
[1766453329212,10.43767296,126.49,126.45,0.67]
[1766453329416,0.65,126.49,126.46,0.67]
[1766453329636,4.25716875,126.5,126.46,0.67]
[1766453330251,4.25716875,126.5,126.47,0.67]
[1766453330252,0.65,126.5,126.47,0.67]
[1766453331332,4.25716875,126.5,126.47,0.67]
[1766453331538,0.65,126.49,126.46,0.67]
[1766453334440,0.65,126.49,126.45,3.5]
[1766453334644,0.65,126.48,126.45,4.17]
[1766453335624,0.65,126.48,126.45,0.67]
[1766453336751,0.65,126.47,126.43,0.67]
[1766453336945,0.65,126.47,126.43,4.17]
[1766453353837,3.60716875,126.47,126.43,3.5]
[1766453354037,0.66,126.46,126.43,4.16]
[1766453355062,0.66,126.45,126.43,2.78]
[1766453355442,3.60716875,126.45,126.41,2.94]
[1766453355763,0.66,126.44,126.41,2.94]
[1766453355962,0.66,126.44,126.41,2.28]
[1766453356207,0.66,126.44,126.41,2.94]
[1766453361580,0.66,126.44,126.41,2.28]
[1766453362983,0.66,126.44,126.41,2.94]
[1766453364276,3.60716875,126.46,126.41,2.28]
[1766453364583,3.60716875,126.46,126.42,0.66]
[1766453364791,4.26716875,126.46,126.42,0.66]
[1766453364982,3.60716875,126.46,126.42,0.66]
[1766453365178,4.26716875,126.46,126.42,0.66]
[1766453365503,0.66,126.45,126.41,5.88716875]
[1766453365987,0.66,126.45,126.42,0.66]
[1766453366885,3.60716875,126.46,126.42,0.66]
[1766453367071,0.66,126.45,126.42,0.66]
[1766453370293,0.66,126.46,126.42,0.66]
[1766453370586,11.09767296,126.48,126.43,4.26716875]
[1766453370794,11.09767296,126.48,126.44,0.71]
[1766453371094,0.66,126.48,126.44,0.71]
[1766453371994,0.66,126.48,126.42,27.68526645]
[1766453371995,0.66,126.48,126.45,0.71]
[1766453372894,14.04484171,126.5,126.45,7.90811613]
[1766453373097,4.26716875,126.51,126.47,0.71]
[1766453373472,0.66,126.5,126.47,0.71]
[1766453381006,4.31716875,126.51,126.47,0.71]
[1766453381798,0.71,126.51,126.47,0.71]
[1766453383007,0.71,126.52,126.49,0.71]
[1766453389412,0.71,126.51,126.48,4.48716116]
[1766453389613,0.71,126.51,126.48,5.19716116]
[1766453390896,0.71,126.51,126.48,2.18]
[1766453391101,0.71,126.5,126.48,2.18]
[1766453392314,3.01716116,126.49,126.48,2.18]
[1766453392519,0.71,126.49,126.46,0.71]
[1766453392722,3.01716116,126.49,126.46,0.71]
[1766453392908,3.01716116,126.49,126.44,16.74716116]
[1766453392909,2.30716116,126.49,126.43,7.90947797]
[1766453393121,0.62,126.47,126.44,3.01716116]
[1766453393419,0.62,126.46,126.43,3.01716116]
[1766453397125,11.05767296,126.47,126.44,0.71]
[1766453399414,0.62,126.47,126.44,0.71]
[1766453399716,0.62,126.48,126.45,0.71]
[1766453400422,2.92716116,126.48,126.45,0.71]
[1766453402012,2.30716116,126.48,126.42,7.90997187]
[1766453402219,0.62,126.47,126.44,0.71]
[1766453404218,0.62,126.46,126.43,2.45]
[1766453404823,0.62,126.46,126.43,1.74]
[1766453405129,0.62,126.46,126.44,0.71]
[1766453405331,12.74483412,126.47,126.44,0.71]
[1766453405525,13.36483412,126.47,126.43,2.45]
[1766453406019,13.36483412,126.47,126.44,0.72]
[1766453407926,12.74483412,126.47,126.44,0.72]
[1766453408135,2.30716116,126.46,126.43,1.74]
[1766453408312,0.62,126.45,126.43,1.74]
[1766453408633,2.92716116,126.46,126.43,1.74]
[1766453409333,2.30716116,126.46,126.43,1.74]
[1766453409532,0.62,126.45,126.43,1.74]
[1766453410025,0.62,126.45,126.42,0.72]
[1766453416837,0.62,126.45,126.42,2.30716116]
[1766453417034,0.62,126.48,126.44,0.72]
[1766453417220,2.92716116,126.48,126.45,0.72]
[1766453417653,0.62,126.48,126.45,0.72]
[1766453417840,2.92716116,126.51,126.47,0.72]
[1766453418438,10.43767296,126.5,126.47,0.72]
[1766453418743,13.36483412,126.5,126.47,0.72]
[1766453418945,0.62,126.49,126.46,0.72]
[1766453419622,2.92716116,126.49,126.46,0.72]
[1766453420637,0.62,126.49,126.46,0.72]
[1766453420823,11.05767296,126.5,126.46,0.72]
[1766453421024,13.36483412,126.5,126.46,0.72]
[1766453421242,13.36483412,126.5,126.46,3.02716116]
[1766453421640,13.36483412,126.5,126.46,2.30716116]
[1766453421831,13.36483412,126.5,126.46,3.02716116]
[1766453422332,13.36483412,126.5,126.46,0.72]
[1766453426552,11.05767296,126.5,126.46,0.72]
[1766453426847,13.36483412,126.5,126.46,0.72]
[1766453427754,11.05767296,126.5,126.46,0.72]
[1766453428053,13.36483412,126.5,126.46,0.72]
[1766453428552,11.05767296,126.5,126.46,0.72]
[1766453428751,11.05767296,126.5,126.45,5.40716116]
[1766453428752,13.36483412,126.52,126.47,2.30716116]
[1766453428928,13.36483412,126.52,126.49,0.72]
[1766453429642,2.30716116,126.51,126.47,2.30716116]
[1766453429850,2.92716116,126.51,126.48,0.72]
[1766453430155,0.62,126.51,126.48,0.72]
[1766453431941,11.05767296,126.52,126.48,0.72]
[1766453432143,13.36483412,126.52,126.48,0.72]
[1766453436059,2.30716116,126.51,126.48,0.72]
[1766453438173,0.62,126.55,126.51,0.66]
[1766453438465,11.05767296,126.55,126.51,2.96716116]
[1766453438657,13.36483412,126.55,126.51,2.96716116]
[1766453439250,11.05767296,126.55,126.51,2.96716116]
[1766453439853,11.05767296,126.55,126.51,0.66]
[1766453440053,11.05767296,126.55,126.51,2.96716116]
[1766453440253,11.05767296,126.55,126.52,0.66]
[1766453442246,0.62,126.58,126.53,2.30716116]
[1766453442451,11.05767296,126.57,126.54,0.66]
[1766453442651,10.43767296,126.56,126.54,0.66]
[1766453446283,4.2218546,126.57,126.54,0.66]
[1766453446284,0.62,126.57,126.54,0.66]
[1766453447953,15.06,126.58,126.54,0.66]
[1766453448154,18.6618546,126.58,126.54,0.66]
[1766453449676,14.65952756,126.58,126.54,0.66]
[1766453449874,3.6018546,126.57,126.54,0.66]
[1766453450171,0.62,126.55,126.52,3.76]
[1766453450360,14.65952756,126.56,126.53,0.66]
[1766453450756,10.43767296,126.56,126.53,0.66]
[1766453450986,10.43767296,126.56,126.53,4.2618546]
[1766453451153,0.62,126.59,126.54,3.6018546]
[1766453451351,14.85952756,126.6,126.56,0.66]
[1766453452478,11.25767296,126.6,126.56,0.66]
[1766453452657,14.23952756,126.6,126.56,0.66]
[1766453452977,14.85952756,126.6,126.56,0.66]
[1766453455785,4.4218546,126.6,126.56,0.66]
[1766453456304,4.4218546,126.6,126.56,7.3618546]
[1766453456493,0.2,126.6,126.58,0.66]
[1766453460370,0.2,126.61,126.59,0.66]
[1766453460674,0.2,126.63,126.59,3.6018546]
[1766453460879,0.2,126.63,126.61,0.66]
[1766453461879,0.2,126.63,126.61,4.2618546]
[1766453462277,0.2,126.63,126.62,0.66]
[1766453464292,0.2,126.63,126.62,4.2618546]
[1766453465193,0.2,126.63,126.62,0.66]
[1766453465787,0.2,126.64,126.61,11.49996652]
[1766453465991,0.2,126.65,126.64,0.67]
[1766453470188,0.2,126.66,126.64,3.6018546]
[1766453470404,0.2,126.67,126.66,0.67]
[1766453470710,0.2,126.67,126.66,4.2718546]
[1766453472714,0.2,126.67,126.66,0.67]
[1766453473014,0.2,126.67,126.65,0.67]
[1766453473208,3.6018546,126.66,126.61,0.67]
[1766453473396,4.3218546,126.65,126.61,0.67]
[1766453474204,4.3218546,126.65,126.61,8.5682226]
[1766453474511,4.3218546,126.65,126.62,0.67]
[1766453474804,0.72,126.65,126.62,0.67]
[1766453475507,0.2,126.67,126.65,0.67]
[1766453480412,3.8018546,126.67,126.59,19.74859749]
[1766453480607,4.3218546,126.63,126.59,0.67]
[1766453482217,4.3218546,126.63,126.6,0.67]
[1766453482618,0.72,126.63,126.6,4.2718546]
[1766453483919,3.6018546,126.65,126.6,4.2718546]
[1766453484118,0.72,126.64,126.6,4.2718546]
[1766453487589,0.72,126.66,126.63,0.67]
[1766453488641,0.72,126.64,126.6,3.1]
[1766453488800,0.72,126.63,126.6,0.67]
[1766453491719,0.72,126.63,126.58,25.41993132]
[1766453491921,0.72,126.62,126.59,0.67]
[1766453493514,0.72,126.63,126.59,0.67]
[1766453495422,0.72,126.63,126.59,4.2718546]
[1766453496125,0.72,126.63,126.59,7.3718546]
[1766453498226,0.72,126.63,126.59,3.77]
[1766453498428,4.3218546,126.63,126.59,3.77]
[1766453498928,0.72,126.63,126.59,10.99947945]
[1766453499102,0.72,126.63,126.6,0.7]
[1766453499926,14.75952756,126.65,126.6,3.6018546]
[1766453500125,14.03952756,126.65,126.61,0.7]
[1766453500329,0.72,126.64,126.6,0.7]
[1766453501417,4.3218546,126.64,126.6,0.7]
[1766453501607,0.72,126.63,126.6,0.7]
[1766453502004,4.3218546,126.63,126.6,0.7]
[1766453502730,0.72,126.62,126.59,3.1]
[1766453503934,14.75952756,126.64,126.6,0.7]
[1766453504231,11.15767296,126.64,126.61,0.7]
[1766453505213,10.43767296,126.64,126.61,0.7]
[1766453506232,0.72,126.65,126.61,0.7]
[1766453506807,0.72,126.65,126.62,0.7]
[1766453508729,2.30206601,126.65,126.61,3.8]
[1766453508921,0.72,126.64,126.61,3.1]
[1766453509131,3.02206601,126.64,126.61,3.1]
[1766453509536,0.72,126.64,126.61,3.1]
[1766453510128,0.72,126.64,126.61,3.8]
[1766453511015,13.45973897,126.65,126.61,3.8]
[1766453513328,11.15767296,126.65,126.61,3.8]
[1766453513530,13.45973897,126.65,126.61,3.8]
[1766453513856,11.15767296,126.65,126.61,3.8]
[1766453514125,13.45973897,126.65,126.61,3.8]
[1766453514840,12.73973897,126.65,126.61,3.8]
[1766453515042,0.72,126.64,126.61,3.8]
[1766453521040,0.72,126.63,126.61,3.1]
[1766453522551,2.30206601,126.64,126.61,3.8]
[1766453522759,11.15767296,126.65,126.62,0.7]
[1766453522760,0.72,126.65,126.62,0.7]
[1766453524534,0.72,126.65,126.62,3.00206601]
[1766453528752,0.72,126.65,126.62,6.10206601]
[1766453529052,0.68,126.66,126.63,0.66]
[1766453530556,0.88,126.67,126.64,0.66]
[1766453533567,3.18206601,126.67,126.64,0.66]
[1766453533864,0.68,126.66,126.63,0.66]
[1766453534257,0.68,126.65,126.62,3.76]
[1766453534663,2.98206601,126.65,126.62,3.76]
[1766453534834,0.68,126.66,126.62,3.1]
[1766453535037,0.68,126.65,126.62,3.1]
[1766453535563,0.68,126.64,126.62,3.1]
[1766453537663,0.68,126.63,126.6,3.76]
[1766453542168,0.68,126.63,126.6,11.65888326]
[1766453543358,0.68,126.63,126.6,3.76]
[1766453544573,0.68,126.63,126.6,3.1]
[1766453545044,0.68,126.63,126.59,23.03934925]
[1766453545246,0.68,126.63,126.59,8.61934925]
[1766453546056,0.66,126.62,126.59,8.61934925]
[1766453548447,0.66,126.62,126.59,0.72]
[1766453548769,0.66,126.62,126.58,14.02207236]
[1766453548966,2.30206601,126.62,126.58,0.72]
[1766453549271,0.66,126.6,126.57,0.72]
[1766453549654,0.66,126.6,126.57,8.62062389]
[1766453550367,0.66,126.6,126.57,10.9226899]
[1766453550972,0.66,126.6,126.57,10.2026899]
[1766453551169,0.66,126.6,126.58,0.72]
[1766453551774,12.73973897,126.62,126.58,3.02206601]
[1766453551775,0.66,126.61,126.58,3.02206601]
[1766453551941,10.43767296,126.62,126.59,0.72]
[1766453551942,11.09767296,126.62,126.59,0.72]
[1766453552148,10.43767296,126.62,126.59,0.72]
[1766453552472,0.66,126.63,126.59,0.72]
[1766453553864,2.30206601,126.63,126.59,0.72]
[1766453554052,0.66,126.62,126.59,0.72]
[1766453558675,2.30206601,126.62,126.58,3.1]
[1766453558855,0.68,126.61,126.58,3.82]
[1766453562593,0.68,126.61,126.58,3.1]
[1766453562757,0.68,126.6,126.58,3.1]
[1766453562957,0.68,126.6,126.57,3.82]
[1766453569361,3.59937805,126.6,126.55,21.83937805]
[1766453569560,18.01937805,126.66,126.55,3.82]
[1766453569561,3.59937805,126.59,126.55,3.82]
[1766453569765,0.68,126.58,126.55,3.82]
[1766453570568,0.68,126.58,126.56,0.72]
[1766453571488,0.68,126.58,126.55,3.82]
[1766453572595,0.68,126.58,126.55,15.32136786]
[1766453573375,3.59937805,126.6,126.57,0.72]
[1766453573376,0.68,126.6,126.57,0.72]
[1766453579099,11.11767296,126.61,126.57,0.72]
[1766453579299,11.11767296,126.61,126.58,0.72]
[1766453579488,14.71705101,126.61,126.58,0.72]
[1766453582196,0.68,126.61,126.58,0.72]
[1766453583400,0.68,126.63,126.59,0.72]
[1766453583597,0.68,126.64,126.6,3.59937805]
[1766453583796,0.68,126.66,126.61,0.72]
[1766453583998,11.11767296,126.65,126.61,0.72]
[1766453584386,14.71705101,126.65,126.61,0.72]
[1766453584707,0.68,126.64,126.61,0.72]
[1766453584895,14.71705101,126.65,126.61,0.72]
[1766453585404,4.27937805,126.65,126.61,0.72]
[1766453585700,14.71705101,126.65,126.61,0.72]
[1766453587506,0.69,126.64,126.61,0.72]
[1766453589308,11.12767296,126.65,126.62,0.69]
[1766453589487,10.43767296,126.65,126.62,0.69]
[1766453589803,11.12767296,126.65,126.62,0.69]
[1766453591413,0.69,126.65,126.62,0.69]
[1766453592006,0.69,126.66,126.62,0.69]
[1766453593100,0.69,126.66,126.62,8.5875824]
[1766453593310,14.92705101,126.67,126.63,0.69]
[1766453593606,0.69,126.66,126.63,0.69]
[1766453594683,0.69,126.66,126.63,8.58693741]
[1766453595411,0.69,126.66,126.63,0.69]
[1766453596103,14.23705101,126.67,126.64,0.69]
[1766453596104,11.32767296,126.67,126.64,0.69]
[1766453596296,11.32767296,126.67,126.64,3.79]
[1766453596297,0.89,126.67,126.64,3.79]
[1766453598606,0.89,126.67,126.64,11.68639756]
[1766453600414,0.89,126.67,126.64,15.28577561]
[1766453600830,0.89,126.67,126.64,11.68639756]
[1766453602896,0.2,126.67,126.64,10.99639756]
[1766453603124,0.69,126.66,126.64,10.99639756]
[1766453603706,0.69,126.66,126.64,11.68639756]
[1766453604616,0.89,126.67,126.64,11.68639756]
[1766453605923,0.69,126.66,126.64,3.1]
[1766453607131,0.69,126.66,126.64,3.79]
[1766453607423,0.89,126.67,126.64,3.79]
[1766453607625,0.2,126.67,126.64,3.79]
[1766453607818,0.69,126.66,126.64,3.79]
[1766453608630,0.89,126.67,126.64,3.79]
[1766453609438,0.69,126.66,126.64,3.1]
[1766453609924,0.69,126.66,126.64,3.79]
[1766453610523,0.2,126.67,126.64,3.79]
[1766453610701,0.89,126.67,126.64,3.79]
[1766453614924,0.89,126.67,126.64,11.68639148]
[1766453616632,0.89,126.67,126.64,3.79]
[1766453624019,0.2,126.67,126.64,3.79]
[1766453624335,0.88,126.67,126.64,3.79]
[1766453624633,0.68,126.66,126.64,3.79]
[1766453624820,0.68,126.66,126.64,3.1]
[1766453625023,3.59937805,126.66,126.64,1.66]
[1766453625223,3.77937805,126.65,126.64,1.66]
[1766453625540,0.18,126.64,126.6,0.67]
[1766453625742,3.77937805,126.63,126.6,0.67]
[1766453626113,0.18,126.63,126.6,0.67]
[1766453627524,0.18,126.62,126.58,0.67]
[1766453627840,0.18,126.61,126.58,0.67]
[1766453628536,10.61767296,126.63,126.59,0.67]
[1766453629935,10.43767296,126.63,126.59,0.67]
[1766453630125,0.18,126.62,126.59,0.67]
[1766453633138,2.48317981,126.62,126.59,0.67]
[1766453633639,12.74085277,126.62,126.56,10.20441982]
[1766453633838,2.48317981,126.6,126.57,0.67]
[1766453634011,2.48317981,126.59,126.56,0.67]
[1766453634216,2.48317981,126.58,126.55,0.67]
[1766453635236,0.18,126.58,126.55,0.67]
[1766453637429,0.18,126.57,126.53,0.67]
[1766453638020,0.18,126.57,126.54,0.67]
[1766453639044,2.48317981,126.57,126.54,0.67]
[1766453639223,2e-08,126.57,126.54,0.67]
[1766453639645,2e-08,126.57,126.53,0.67]
[1766453640148,2.30317981,126.57,126.53,0.67]
[1766453640530,2.30317981,126.6,126.53,0.67]
[1766453640748,2.30317981,126.57,126.53,0.67]
[1766453641627,2.30317981,126.56,126.52,15.09]
[1766453641955,2.30317981,126.55,126.51,0.77]
[1766453642844,10.43767296,126.56,126.51,0.77]
[1766453643052,12.74085277,126.56,126.52,0.67]
[1766453643235,10.43767296,126.56,126.52,0.67]
[1766453643437,12.74085277,126.56,126.52,0.67]
[1766453644452,2.30317981,126.56,126.52,0.67]
[1766453646728,2.30317981,126.57,126.53,0.71]
[1766453649836,2.30317981,126.56,126.53,0.71]
[1766453651662,2.30317981,126.56,126.52,1.31]
[1766453651845,2.30317981,126.56,126.53,0.71]
[1766453656362,12.74085277,126.57,126.53,0.71]
[1766453658662,2.30317981,126.55,126.52,0.6]
[1766453658974,2.30317981,126.53,126.51,0.1]
[1766453663359,12.74085277,126.53,126.51,0.1]
[1766453663555,12.74085277,126.53,126.49,0.7]
[1766453663556,2.30317981,126.52,126.49,1.37]
[1766453663752,2.30317981,126.5,126.48,0.77]
[1766453663994,10.43767296,126.53,126.46,0.7]
[1766453663995,2.30317981,126.49,126.46,1.37]
[1766453664170,2.30317981,126.49,126.46,0.77]
[1766453666451,2.30317981,126.49,126.44,0.7]
[1766453666452,2.30317981,126.47,126.44,0.7]
[1766453666678,2.30317981,126.46,126.44,0.7]
[1766453666887,2.30317981,126.46,126.44,0.1]
[1766453667052,2.30317981,126.47,126.44,0.1]
[1766453668278,2.30317981,126.46,126.44,0.77]
[1766453670453,14.44,126.49,126.44,0.77]
[1766453670654,2.30317981,126.47,126.44,0.77]
[1766453670982,2.30317981,126.47,126.44,0.1]
[1766453672052,2.30317981,126.46,126.44,0.1]
[1766453672254,12.74085277,126.46,126.44,0.1]
[1766453674449,2.30317981,126.45,126.44,0.1]
[1766453674645,2.30317981,126.45,126.42,0.67]
[1766453674876,2.30317981,126.44,126.41,0.77]
[1766453676061,2.30317981,126.45,126.41,0.77]
[1766453680269,2.30317981,126.42,126.41,0.1]
[1766453680462,2.30317981,126.42,126.39,0.76]
[1766453680772,2.30317981,126.41,126.39,0.76]
[1766453680973,2.30317981,126.41,126.39,0.1]
[1766453681154,2.30317981,126.4,126.39,0.1]
[1766453681353,24.87767296,126.45,126.37,0.1]
[1766453681354,2.30317981,126.42,126.37,0.1]
[1766453681677,2.30317981,126.39,126.37,0.1]
[1766453682060,12.74085277,126.4,126.37,0.1]
[1766453683181,7.90894299,126.44,126.37,0.1]
[1766453683369,10.43767296,126.43,126.39,0.66]
[1766453684078,2.30317981,126.42,126.39,0.66]
[1766453685878,12.74085277,126.41,126.37,0.1]
[1766453686072,12.74085277,126.41,126.38,0.66]
[1766453688586,10.43767296,126.41,126.38,0.66]
[1766453688999,12.74085277,126.41,126.38,0.66]
[1766453689294,12.74085277,126.41,126.37,0.1]
[1766453689295,2.30317981,126.39,126.37,0.1]
[1766453689459,12.74085277,126.38,126.37,0.1]
[1766453689665,12.74085277,126.38,126.36,0.1]
[1766453690060,3.61262508,126.37,126.36,0.1]
[1766453690562,14.05029804,126.38,126.36,0.1]
[1766453691184,10.43767296,126.38,126.36,0.1]
[1766453691380,10.43767296,126.38,126.36,0.76]
[1766453694397,3.61262508,126.4,126.36,0.76]
[1766453694694,14.05029804,126.38,126.36,0.76]
[1766453694878,14.05029804,126.38,126.36,0.1]
[1766453695686,3.61262508,126.37,126.36,0.1]
[1766453698666,3.61262508,126.37,126.34,0.1]
[1766453698866,3.61262508,126.36,126.34,0.1]
[1766453699098,3.61262508,126.35,126.34,0.1]
[1766453699789,3.61262508,126.35,126.33,0.1]
[1766453699990,3.61262508,126.34,126.33,0.1]
[1766453700192,3.61262508,126.33,126.32,0.66]
[1766453700583,3.61262508,126.33,126.3,0.76]
[1766453702887,3.61262508,126.33,126.3,0.1]
[1766453703085,24.89767296,126.35,126.3,0.1]
[1766453703478,3.61262508,126.32,126.3,0.76]
[1766453708410,14.05029804,126.32,126.3,0.1]
[1766453714112,28.51029804,126.32,126.3,0.1]